fUSD/lending_fUSD_20260405
["ID","MTS","AMOUNT","RATE_DAILY","PERIOD"]
[419747948,1775353844823,-500.0,0.00013698,2]
[419747949,1775353844832,-500.0,0.00013698,2]
[419747950,1775353844841,-201.28,0.00013698,2]
[419747951,1775353844851,-500.0,0.00013698,2]
[419747952,1775353844861,-500.0,0.00013698,2]
[419747953,1775353844870,-500.0,0.00013698,2]
[419747954,1775353844879,-500.0,0.00013698,2]
[419747955,1775353844889,-500.0,0.00013698,2]
[419747956,1775353844898,-500.0,0.00013698,2]
[419747957,1775353844907,-500.0,0.00013698,2]
[419747958,1775353844918,-500.0,0.00013698,2]
[419747959,1775353844927,-500.0,0.00013698,2]
[419747960,1775353844936,-500.0,0.00013698,2]
[419747961,1775353844945,-786.76,0.00013698,2]
[419747962,1775353844963,-500.0,0.00013698,2]
[419747963,1775353844982,-786.76,0.00013698,2]
[419747964,1775353845000,-500.0,0.00013698,2]
[419747965,1775353845019,-786.76,0.00013698,2]
[419747966,1775353845037,-500.0,0.00013698,2]
[419747967,1775353845055,-500.0,0.00013698,2]
[419747968,1775353845072,-786.76,0.00013698,2]
[419747969,1775353845087,-786.76,0.00013698,2]
[419747970,1775353845105,-500.0,0.00013698,2]
[419747971,1775353845124,-786.76,0.00013698,2]
[419747972,1775353845144,-500.0,0.00013698,2]
[419747973,1775353845158,-500.0,0.00013698,2]
[419747974,1775353845175,-786.76,0.00013698,2]
[419747975,1775353845193,-500.0,0.00013698,2]
[419747976,1775353845212,-786.76,0.00013698,2]
[419747977,1775353845226,-500.0,0.00013698,2]
[419747978,1775353845241,-786.76,0.00013698,2]
[419747979,1775353845256,-500.0,0.00013698,2]
[419747980,1775353845271,-786.76,0.00013698,2]
[419747981,1775353845287,-500.0,0.00013698,2]
[419747982,1775353845303,-786.76,0.00013698,2]
[419747983,1775353845318,-500.0,0.00013698,2]
[419747984,1775353845332,-786.76,0.00013698,2]
[419747985,1775353845349,-500.0,0.00013698,2]
[419747986,1775353845372,-786.76,0.00013698,2]
[419747987,1775353845386,-500.0,0.00013698,2]
[419747988,1775353845401,-786.76,0.00013698,2]
[419747989,1775353845416,-500.0,0.00013698,2]
[419747990,1775353845431,-786.76,0.00013698,2]
[419747991,1775353845446,-500.0,0.00013698,2]
[419747992,1775353845461,-786.76,0.00013698,2]
[419747993,1775353845475,-786.76,0.00013698,2]
[419747994,1775353845491,-786.76,0.00013698,2]
[419747995,1775353845506,-500.0,0.00013698,2]
[419747996,1775353845521,-500.0,0.00013698,2]
[419747997,1775353845537,-786.76,0.00013698,2]
[419747998,1775353845551,-500.0,0.00013698,2]
[419747999,1775353845567,-786.76,0.00013698,2]
[419748000,1775353845582,-500.0,0.00013698,2]
[419748001,1775353845596,-786.76,0.00013698,2]
[419748002,1775353845611,-500.0,0.00013698,2]
[419748003,1775353845627,-786.76,0.00013698,2]
[419748004,1775353845642,-500.0,0.00013698,2]
[419748005,1775353845657,-786.76,0.00013698,2]
[419748006,1775353845673,-500.0,0.00013698,2]
[419748007,1775353845688,-786.88,0.00013698,2]
[419748008,1775353845703,-500.0,0.00013698,2]
[419748009,1775353845718,-500.0,0.00013698,2]
[419748010,1775353845733,-500.0,0.00013698,2]
[419748011,1775353845748,-500.0,0.00013698,2]
[419748012,1775353845764,-500.0,0.00013698,2]
[419748013,1775353845779,-500.0,0.00013698,2]
[419748014,1775353845793,-500.0,0.00013698,2]
[419748015,1775353845808,-500.0,0.00013698,2]
[419748016,1775353845823,-500.0,0.00013698,2]
[419748017,1775353845838,-500.0,0.00013698,2]
[419748018,1775353845853,-500.0,0.00013698,2]
[419748019,1775353845869,-355.16871344,0.00013698,2]
[419748020,1775353845883,-500.0,0.00013698,2]
[419748021,1775353845899,-500.0,0.00013698,2]
[419748022,1775353845914,-500.0,0.00013698,2]
[419748023,1775353845929,-500.0,0.00013698,2]
[419748024,1775353845944,-500.0,0.00013698,2]
[419748025,1775353845959,-500.0,0.00013698,2]
[419748026,1775353845973,-500.0,0.00013698,2]
[419748027,1775353845989,-500.0,0.00013698,2]
[419748028,1775353846006,-500.0,0.00013698,2]
[419748029,1775353846021,-500.0,0.00013698,2]
[419748030,1775353846038,-500.0,0.00013698,2]
[419748031,1775353846053,-500.0,0.00013698,2]
[419748032,1775353846068,-500.0,0.00013698,2]
[419748033,1775353846084,-500.0,0.00013698,2]
[419748034,1775353846099,-500.0,0.00013698,2]
[419748035,1775353846114,-500.0,0.00013698,2]
[419748036,1775353846128,-500.0,0.00013698,2]
[419748037,1775353846144,-500.0,0.00013698,2]
[419748038,1775353846159,-500.0,0.00013698,2]
[419748039,1775353846174,-500.0,0.00013698,2]
[419748040,1775353846189,-484.03247685,0.00013698,2]
[419748041,1775353846204,-150.0,0.00013699,2]
[419748042,1775353846220,-150.0,0.00013699,2]
[419748043,1775353846235,-166.66,0.00013699,2]
[419748044,1775353846250,-157.85,0.00013699,2]
[419748045,1775353846265,-717.06,0.00013699,2]
[419748046,1775353846280,-151.0,0.00013699,2]
[419748047,1775353846296,-151.0,0.00013699,2]
[419748048,1775353846311,-500.0,0.00013699,2]
[419748049,1775353846327,-500.0,0.00013699,2]
[419748050,1775353846342,-161.91170216,0.00013699,2]
[419748051,1775353846357,-500.0,0.00013699,2]
[419748052,1775353846372,-500.0,0.00013699,2]
[419748053,1775353846387,-339.79133416,0.00013699,2]
[419748054,1775353846403,-403.93256284,0.00013699,2]
[419748055,1775353846418,-500.0,0.00013699,2]
[419748056,1775353846433,-500.0,0.00013699,2]
[419748057,1775353846448,-500.0,0.00013699,2]
[419748058,1775353846462,-500.0,0.00013699,2]
[419748059,1775353846477,-500.0,0.00013699,2]
[419748060,1775353846493,-500.0,0.00013699,2]
[419748061,1775353846508,-500.0,0.00013699,2]
[419748062,1775353846522,-500.0,0.00013699,2]
[419748063,1775353846537,-500.0,0.00013699,2]
[419748064,1775353846552,-500.0,0.00013699,2]
[419748065,1775353846566,-500.0,0.00013699,2]
[419748066,1775353846581,-500.0,0.00013699,2]
[419748067,1775353846597,-385.86149772,0.00013699,2]
[419748068,1775353846611,-500.0,0.00013699,2]
[419748069,1775353846626,-500.0,0.00013699,2]
[419748070,1775353846641,-500.0,0.00013699,2]
[419748071,1775353846656,-500.0,0.00013699,2]
[419748073,1775353846671,-500.0,0.00013699,2]
[419748074,1775353846687,-500.0,0.00013699,2]
[419748075,1775353846701,-598.99606082,0.00013699,2]
[419748076,1775353846716,-519.03182682,0.00013699,2]
[419748077,1775353846730,-500.0,0.00013699,2]
[419748078,1775353846745,-500.0,0.00013699,2]
[419748080,1775353846760,-500.0,0.00013699,2]
[419748081,1775353846775,-500.0,0.00013699,2]
[419748082,1775353846789,-500.0,0.00013699,2]
[419748083,1775353846804,-607.20051974,0.00013699,2]
[419748084,1775353846819,-500.0,0.00013699,2]
[419748085,1775353846833,-500.0,0.00013699,2]
[419748086,1775353846848,-312.74353669,0.00013699,2]
[419748087,1775353846863,-500.50066882,0.00013699,2]
[419748088,1775353846878,-500.0,0.00013699,2]
[419748089,1775353846893,-515.7358709,0.00013699,2]
[419748090,1775353846907,-569.20510167,0.00013699,2]
[419748091,1775353846923,-500.0,0.00013699,2]
[419748092,1775353846940,-210.98153295,0.00013699,2]
[419748093,1775353846955,-160.34417201,0.00013699,2]
[419748094,1775353846970,-500.0,0.00013699,2]
[419748095,1775353847260,-164.79711181,0.00013699,2]
[419748096,1775353847298,-500.0,0.00013699,2]
[419748097,1775353847310,-500.0,0.00013699,2]
[419748098,1775353847319,-500.0,0.00013699,2]
[419748099,1775353847329,-500.0,0.00013699,2]
[419748100,1775353847338,-500.0,0.00013699,2]
[419748101,1775353847350,-500.0,0.00013699,2]
[419748102,1775353847358,-500.0,0.00013699,2]
[419748103,1775353847367,-163.60261744,0.00013699,2]
[419748104,1775353847378,-500.0,0.00013699,2]
[419748105,1775353847387,-500.0,0.00013699,2]
[419748106,1775353847397,-500.0,0.00013699,2]
[419748107,1775353847406,-500.0,0.00013699,2]
[419748108,1775353847415,-500.0,0.00013699,2]
[419748109,1775353847425,-160.7467095,0.00013699,2]
[419748110,1775353847435,-168.69935806,0.00013699,2]
[419748111,1775353847444,-500.0,0.00013699,2]
[419748112,1775353847453,-500.0,0.00013699,2]
[419748113,1775353847463,-500.0,0.00013699,2]
[419748114,1775353847472,-500.0,0.00013699,2]
[419748115,1775353847481,-201.75,0.00013699,2]
[419748116,1775353847491,-545.02986039,0.00013699,2]
[419748117,1775353847501,-150.42290827,0.000137,2]
[419748118,1775353847510,-1582.945631,0.00013715,2]
[419748119,1775353847519,-590.07729801,0.00013736,2]
[419748120,1775353847529,-500.0,0.00013736,2]
[419748121,1775353847539,-500.0,0.00013736,2]
[419748122,1775353847548,-500.0,0.00013736,2]
[419748123,1775353847557,-500.0,0.00013736,2]
[419748124,1775353847567,-639.6,0.00013736,2]
[419748125,1775353847576,-923.76,0.00013736,2]
[419748126,1775353847587,-500.0,0.00013736,2]
[419748127,1775353847596,-506.02,0.00013736,2]
[419748128,1775353847606,-1347.0,0.00013763,2]
[419748129,1775353847615,-1347.0,0.00013763,2]
[419748130,1775353847624,-1347.0,0.00013763,2]
[419748131,1775353847634,-1347.0,0.00013763,2]
[419748132,1775353847643,-1347.0,0.00013763,2]
[419748133,1775353847653,-1347.0,0.00013763,2]
[419748134,1775353847662,-500.0,0.00013763,2]
[419748135,1775353847671,-1347.0,0.00013763,2]
[419748136,1775353847681,-500.0,0.00013763,2]
[419748137,1775353847691,-1347.0,0.00013763,2]
[419748138,1775353847700,-500.0,0.00013763,2]
[419748139,1775353847710,-1347.0,0.00013763,2]
[419748140,1775353847719,-500.0,0.00013763,2]
[419748141,1775353847728,-1347.0,0.00013763,2]
[419748142,1775353847738,-500.0,0.00013763,2]
[419748143,1775353847747,-1347.0,0.00013763,2]
[419748144,1775353847756,-500.0,0.00013763,2]
[419748145,1775353847765,-500.0,0.00013763,2]
[419748146,1775353847775,-1347.0,0.00013763,2]
[419748147,1775353847784,-1347.0,0.00013763,2]
[419748148,1775353847794,-500.0,0.00013763,2]
[419748149,1775353847803,-1347.0,0.00013763,2]
[419748150,1775353847812,-500.0,0.00013763,2]
[419748151,1775353847822,-1347.0,0.00013763,2]
[419748152,1775353847832,-500.0,0.00013763,2]
[419748153,1775353847841,-1347.0,0.00013763,2]
[419748154,1775353847850,-500.0,0.00013763,2]
[419748155,1775353847859,-1347.0,0.00013763,2]
[419748156,1775353847868,-500.0,0.00013763,2]
[419748157,1775353847878,-168.82696311,0.00013763,2]
[419748158,1775353847887,-1347.0,0.00013763,2]
[419748159,1775353847899,-1347.0,0.00013763,2]
[419748160,1775353847909,-1347.0,0.00013763,2]
[419748161,1775353847918,-1347.0,0.00013763,2]
[419748162,1775353847927,-1347.0,0.00013763,2]
[419748163,1775353847938,-1347.0,0.00013763,2]
[419748164,1775353847948,-1368.80725007,0.00013763,2]
[419748165,1775353847959,-500.0,0.00013773,2]
[419748166,1775353847968,-500.13152132,0.00013773,2]
[419748167,1775353847978,-1133.91184003,0.00013814,2]
[419748168,1775353847987,-166.66,0.00013836,2]
[419748169,1775353847998,-200.0,0.00013838,2]
[419748170,1775353848008,-1724.57206028,0.00013838,2]
[419748171,1775353848017,-346.25771876,0.00013872,2]
[419748172,1775353848027,-49383.11922508,0.00013884,2]
[419748173,1775353848036,-1389.4,0.00013901,2]
[419748174,1775353848046,-150.0,0.00013973,2]
[419748175,1775353848055,-166.66,0.00013973,2]
[419748176,1775353848064,-9601.90631203,0.00014006,2]
[419748177,1775353848074,-6568.17,0.00014075,2]
[419748178,1775353848083,-166.66,0.0001411,2]
[419748179,1775353848093,-1389.4,0.00014175,2]
[419748180,1775353848102,-504.16354975,0.00014224,2]
[419748181,1775353848111,-503.06293944,0.00014232,2]
[419748182,1775353848120,-500.0,0.00014232,2]
[419748183,1775353848130,-500.0,0.00014232,2]
[419748184,1775353848139,-602.57161545,0.00014232,2]
[419748185,1775353848149,-639.6,0.00014232,2]
[419748186,1775353848158,-923.76,0.00014232,2]
[419748187,1775353848167,-347.3,0.00014232,2]
[419748188,1775353848176,-506.02,0.00014232,2]
[419748189,1775353848186,-166.66,0.00014247,2]
[419748190,1775353848195,-150.0,0.00014247,2]
[419748191,1775353848205,-308.03873246,0.00014247,2]
[419748192,1775353848214,-627.70930647,0.00014247,2]
[419748193,1775353848223,-1000.0,0.00014247,2]
[419748194,1775353848232,-1000.0,0.00014247,2]
[419748195,1775353848241,-1000.0,0.00014247,2]
[419748196,1775353848250,-1000.0,0.00014247,2]
[419748197,1775353848259,-1000.0,0.00014247,2]
[419748198,1775353848268,-1000.0,0.00014247,2]
[419748199,1775353848277,-1000.0,0.00014247,2]
[419748200,1775353848287,-1000.0,0.00014247,2]
[419748201,1775353848298,-1000.0,0.00014247,2]
[419748202,1775353848308,-1000.0,0.00014247,2]
[419748203,1775353848317,-1000.0,0.00014247,2]
[419748204,1775353848327,-1000.0,0.00014247,2]
[419748205,1775353848337,-1000.0,0.00014247,2]
[419748206,1775353848346,-1003.05479874,0.00014247,2]
[419748207,1775353848355,-500.51473043,0.00014247,2]
[419748208,1775353848364,-1000.0,0.00014247,2]
[419748209,1775353848373,-1000.0,0.00014247,2]
[419748210,1775353848382,-1000.0,0.00014247,2]
[419748211,1775353848392,-1000.0,0.00014247,2]
[419748212,1775353848401,-1000.0,0.00014247,2]
[419748213,1775353848410,-1000.0,0.00014247,2]
[419748214,1775353848419,-1000.0,0.00014247,2]
[419748215,1775353848429,-920.84825679,0.00014247,2]
[419748216,1775353848438,-1000.0,0.00014247,2]
[419748217,1775353848447,-502.13162569,0.00014247,2]
[419748218,1775353848456,-392.40251215,0.00014247,2]
[419748219,1775353848465,-1000.0,0.00014247,2]
[419748220,1775353848475,-1000.0,0.00014247,2]
[419748221,1775353848484,-1000.0,0.00014247,2]
[419748222,1775353848493,-180.00096908,0.00014247,2]
[419748223,1775353848502,-1000.0,0.00014247,2]
[419748224,1775353848512,-1000.0,0.00014247,2]
[419748225,1775353848521,-1000.0,0.00014247,2]
[419748226,1775353848531,-1000.0,0.00014247,2]
[419748227,1775353848541,-1000.0,0.00014247,2]
[419748228,1775353848550,-189.74788311,0.00014247,2]
[419748229,1775353848559,-1000.0,0.00014247,2]
[419748230,1775353848568,-686.27125357,0.00014247,2]
[419748231,1775353848577,-212.23593966,0.00014247,2]
[419748232,1775353848587,-1000.0,0.00014247,2]
[419748233,1775353848596,-502.27815316,0.00014247,2]
[419748234,1775353848605,-1000.0,0.00014247,2]
[419748235,1775353848615,-1000.0,0.00014247,2]
[419748236,1775353848624,-1000.0,0.00014247,2]
[419748237,1775353848633,-500.33264559,0.00014247,2]
[419748238,1775353848642,-1000.0,0.00014247,2]
[419748239,1775353848651,-173.8465009,0.00014275,2]
[419748240,1775353848660,-165.82094526,0.00014321,2]
[419748241,1775353848669,-500.0,0.00014332,2]
[419748242,1775353848679,-2000.0,0.00014356,2]
[419748243,1775353848688,-150.14541725,0.00014375,2]
[419748244,1775353848698,-150.0,0.00014375,2]
[419748245,1775353848707,-150.0,0.00014375,2]
[419748246,1775353848716,-150.0,0.00014375,2]
[419748247,1775353848726,-150.0,0.00014375,2]
[419748248,1775353848736,-150.0,0.00014375,2]
[419748249,1775353848745,-150.0,0.00014375,2]
[419748250,1775353848754,-150.0,0.00014375,2]
[419748251,1775353848764,-150.0,0.00014375,2]
[419748252,1775353848773,-150.0,0.00014375,2]
[419748253,1775353848783,-150.0,0.00014375,2]
[419748254,1775353848792,-150.0,0.00014375,2]
[419748255,1775353848801,-150.0,0.00014375,2]
[419748256,1775353848810,-150.0,0.00014375,2]
[419748257,1775353848821,-150.05716299,0.00014375,2]
[419748258,1775353848831,-166.66,0.00014384,2]
[419748259,1775353848841,-200.0,0.00014386,2]
[419748260,1775353848849,-1788.38122651,0.00014386,2]
[419748261,1775353848859,-2000.0,0.00014387,2]
[419748262,1775353848867,-2000.0,0.00014387,2]
[419748263,1775353848876,-2000.0,0.00014387,2]
[419748264,1775353848886,-2000.0,0.00014387,2]
[419748265,1775353848895,-2000.0,0.00014387,2]
[419748266,1775353848904,-2000.0,0.00014387,2]
[419748267,1775353848914,-2000.0,0.00014387,2]
[419748268,1775353848923,-2000.0,0.00014387,2]
[419748269,1775353848932,-2000.0,0.00014387,2]
[419748270,1775353848941,-2000.0,0.00014387,2]
[419748271,1775353848950,-2000.0,0.00014387,2]
[419748272,1775353848959,-2000.0,0.00014387,2]
[419748273,1775353848968,-2000.0,0.00014387,2]
[419748274,1775353848977,-2000.0,0.00014387,2]
[419748275,1775353848986,-2000.0,0.00014387,2]
[419748276,1775353848996,-2000.0,0.00014387,2]
[419748277,1775353849005,-2000.0,0.00014387,2]
[419748278,1775353849015,-2000.0,0.00014387,2]
[419748279,1775353849024,-2000.0,0.00014387,2]
[419748280,1775353849033,-368.0,0.00014387,2]
[419748281,1775353849043,-150.0,0.00014398,2]
[419748282,1775353849053,-150.0,0.000144,2]
[419748283,1775353849062,-1408.79,0.000144,2]
[419748284,1775353849071,-150.0,0.0001441,2]
[419748285,1775353849081,-150.0,0.00014412,2]
[419748286,1775353849091,-150.0,0.00014417,2]
[419748287,1775353849100,-150.0,0.00014421,2]
[419748288,1775353849111,-150.0,0.00014421,2]
[419748289,1775353849121,-150.0,0.00014424,2]
[419748290,1775353849131,-150.0,0.00014442,2]
[419748291,1775353849140,-150.0,0.00014444,2]
[419748292,1775353849149,-150.0,0.00014445,2]
[419748293,1775353849159,-150.0,0.00014448,2]
[419748294,1775353849168,-1389.4,0.00014449,2]
[419748295,1775353849177,-150.0,0.00014449,2]
[419748296,1775353849187,-150.0,0.00014459,2]
[419748297,1775353849196,-288.07,0.0001446,2]
[419748298,1775353849206,-150.0,0.00014467,2]
[419748299,1775353849215,-150.0,0.00014467,2]
[419748300,1775353849225,-150.0,0.00014474,2]
[419748301,1775353849235,-150.0,0.0001448,2]
[419748302,1775353849244,-150.0,0.00014482,2]
[419748303,1775353849253,-150.0,0.00014484,2]
[419748304,1775353849263,-150.0,0.00014489,2]
[419748305,1775353849272,-1152.0,0.00014496,2]
[419748306,1775353849282,-4609.0,0.00014496,2]
[419748307,1775353849291,-1252.0,0.00014497,2]
[419748308,1775353849300,-150.0,0.00014498,2]
[419748309,1775353849309,-150.0,0.00014498,2]
[419748310,1775353849319,-881.74,0.00014499,2]
[419748311,1775353849328,-150.0,0.00014501,2]
[419748312,1775353849339,-1619.684,0.00014504,2]
[419748313,1775353849348,-150.0,0.00014508,2]
[419748314,1775353849358,-150.0,0.00014512,2]
[419748315,1775353849367,-150.0,0.00014512,2]
[419748316,1775353849376,-150.0,0.00014514,2]
[419748317,1775353849386,-150.0,0.00014521,2]
[419748318,1775353849396,-150.0,0.00014523,2]
[419748319,1775353849405,-1136.9361791,0.00014523,2]
[419748320,1775353849414,-150.0,0.00014535,2]
[419748321,1775353849423,-150.0,0.00014543,2]
[419748322,1775353849433,-150.0,0.00014547,2]
[419748323,1775353849442,-49383.11922508,0.00014548,2]
[419748324,1775353849452,-150.0,0.00014549,2]
[419748325,1775353849462,-150.0,0.00014557,2]
[419748326,1775353849471,-150.0,0.00014558,2]
[419748327,1775353849480,-150.0,0.00014558,2]
[419748328,1775353849490,-150.0,0.00014572,2]
[419748329,1775353849500,-150.0,0.00014575,2]
[419748330,1775353849510,-150.0,0.00014581,2]
[419748331,1775353849519,-150.0,0.00014584,2]
[419748332,1775353849528,-402.58,0.00014585,2]
[419748333,1775353849538,-150.0,0.00014586,2]
[419748334,1775353849547,-150.0,0.00014588,2]
[419748335,1775353849558,-150.0,0.00014593,2]
[419748336,1775353849567,-150.0,0.00014597,2]
[419748337,1775353849577,-160.9517,0.000146,2]
[419748338,1775353849586,-150.0,0.00014604,2]
[419748339,1775353849595,-150.0,0.00014604,2]
[419748340,1775353849604,-785.67,0.00014608,2]
[419748341,1775353849614,-402.58,0.00014613,2]
[419748342,1775353849624,-150.0,0.00014618,2]
[419748343,1775353849635,-150.0,0.00014621,2]
[419748344,1775353849644,-150.0,0.00014621,2]
[419748345,1775353849653,-150.0,0.00014626,2]
[419748346,1775353849662,-150.0,0.00014628,2]
[419748347,1775353849674,-150.0,0.00014629,2]
[419748348,1775353849682,-150.0,0.00014642,2]
[419748349,1775353849692,-150.0,0.00014646,2]
[419748350,1775353849702,-150.0,0.00014649,2]
[419748351,1775353849711,-150.0,0.00014649,2]
[419748352,1775353849721,-150.0,0.00014653,2]
[419748353,1775353849730,-150.0,0.00014666,2]
[419748354,1775353849741,-500.0,0.00014667,3]
[419748355,1775353849751,-150.0,0.0001467,2]
[419748356,1775353849761,-150.0,0.0001467,2]
[419748357,1775353849771,-150.0,0.00014672,2]
[419748358,1775353849781,-150.0,0.00014688,2]
[419748359,1775353849790,-150.0,0.00014695,2]
[419748360,1775353849800,-150.0,0.00014695,2]
[419748361,1775353849809,-150.0,0.00014695,2]
[419748362,1775353849818,-150.0,0.00014695,2]
[419748363,1775353849828,-160.9517,0.000147,2]
[419748364,1775353849838,-150.0,0.00014702,2]
[419748365,1775353849848,-150.0,0.00014708,2]
[419748366,1775353849857,-150.0,0.00014712,2]
[419748367,1775353849867,-150.0,0.00014718,2]
[419748368,1775353849876,-150.0,0.00014719,2]
[419748369,1775353849886,-150.0,0.00014723,2]
[419748370,1775353849895,-1389.4,0.00014723,2]
[419748371,1775353849905,-150.0,0.00014738,2]
[419748372,1775353849914,-500.0,0.00014739,2]
[419748373,1775353849925,-500.0,0.00014739,2]
[419748374,1775353849935,-639.6,0.00014739,2]
[419748375,1775353849945,-923.76,0.00014739,2]
[419748376,1775353849955,-506.02,0.00014739,2]
[419748377,1775353849965,-150.0,0.0001474,2]
[419748378,1775353849974,-150.0,0.0001474,2]
[419748379,1775353849983,-150.0,0.00014744,2]
[419748380,1775353849992,-150.0,0.00014744,2]
[419748381,1775353850003,-150.0,0.00014754,2]
[419748382,1775353850012,-150.0,0.00014757,2]
[419748383,1775353850022,-150.0,0.00014763,2]
[419748384,1775353850032,-150.0,0.00014769,2]
[419748385,1775353850042,-881.74,0.00014773,2]
[419748386,1775353850052,-150.0,0.00014775,2]
[419748387,1775353850061,-150.0,0.00014775,2]
[419748388,1775353850070,-150.0,0.00014775,2]
[419748389,1775353850080,-150.0,0.00014786,2]
[419748390,1775353850091,-150.0,0.00014786,2]
[419748391,1775353850100,-150.0,0.00014792,2]
[419748392,1775353850111,-150.0,0.00014793,2]
[419748393,1775353850121,-727.692277,0.00014795,2]
[419748394,1775353850131,-1500.0,0.00014795,2]
[419748395,1775353850140,-1500.0,0.00014795,2]
[419748396,1775353850150,-1502.36401508,0.00014795,2]
[419748397,1775353850159,-501.94346372,0.00014795,2]
[419748398,1775353850168,-1500.0,0.00014795,2]
[419748399,1775353850178,-1500.0,0.00014795,2]
[419748400,1775353850189,-1500.0,0.00014795,2]
[419748401,1775353850198,-1500.0,0.00014795,2]
[419748402,1775353850208,-1500.0,0.00014795,2]
[419748403,1775353850219,-1514.50772422,0.00014795,2]
[419748404,1775353850231,-1500.0,0.00014795,2]
[419748405,1775353850240,-953.31303788,0.00014795,2]
[419748406,1775353850250,-1500.0,0.00014795,2]
[419748407,1775353850260,-1500.0,0.00014795,2]
[419748408,1775353850269,-1500.0,0.00014795,2]
[419748409,1775353850279,-1500.0,0.00014795,2]
[419748410,1775353850484,-1500.0,0.00014795,2]
[419748411,1775353850494,-1500.0,0.00014795,2]
[419748412,1775353850503,-1535.04648556,0.00014795,2]
[419748413,1775353850513,-1500.0,0.00014795,2]
[419748414,1775353850523,-1500.0,0.00014795,2]
[419748415,1775353850532,-1500.0,0.00014795,2]
[419748416,1775353850541,-1500.0,0.00014795,2]
[419748417,1775353850551,-1506.60866792,0.00014795,2]
[419748418,1775353850560,-1500.0,0.00014795,2]
[419748419,1775353850569,-1500.0,0.00014795,2]
[419748420,1775353850579,-1500.0,0.00014795,2]
[419748421,1775353850587,-1500.0,0.00014795,2]
[419748422,1775353850597,-1413.46382838,0.00014795,2]
[419748423,1775353850606,-1500.0,0.00014795,2]
[419748424,1775353850616,-1500.0,0.00014795,2]
[419748425,1775353850625,-418.3764967,0.00014795,2]
[419748426,1775353850635,-1500.0,0.00014795,2]
[419748427,1775353850644,-1500.0,0.00014795,2]
[419748428,1775353850654,-150.0,0.00014796,2]
[419748429,1775353850664,-160.9517,0.000148,2]
[419748430,1775353850674,-150.0,0.00014801,2]
[419748431,1775353850684,-150.0,0.00014809,2]
[419748432,1775353850693,-370.52,0.00014809,2]
[419748433,1775353850703,-150.0,0.00014811,2]
[419748434,1775353850714,-150.0,0.00014818,2]
[419748435,1775353850723,-150.0,0.00014827,2]
[419748436,1775353850733,-150.0,0.00014832,2]
[419748437,1775353850742,-150.0,0.00014832,2]
[419748438,1775353850751,-160.0,0.00014833,2]
[419748439,1775353850761,-150.0,0.00014838,2]
[419748440,1775353850771,-150.0,0.00014841,2]
[419748441,1775353850780,-150.0,0.00014842,2]
[419748442,1775353850791,-150.0,0.00014847,2]
[419748443,1775353850801,-150.0,0.00014855,2]
[419748444,1775353850812,-150.0,0.00014861,2]
[419748445,1775353850821,-150.0,0.00014867,2]
[419748446,1775353850832,-150.0,0.00014867,2]
[419748447,1775353850842,-1600.0,0.00014869,2]
[419748448,1775353850851,-150.0,0.00014877,2]
[419748449,1775353850860,-150.0,0.00014877,2]